fUST/lending_fUST_20260201
["ID","MTS","AMOUNT","RATE_DAILY","PERIOD"]
[404160960,1769887845942,-1104.00944916,0.0004,120]
[404160961,1769887845966,-898.50953732,0.0004,30]
[404160962,1769887845992,-338.4957373,0.0004,120]
[404160963,1769887846017,-481.75203294,0.0004,120]
[404160965,1769887846045,-446.78,0.0004002,120]
[404160966,1769887846072,-446.78,0.0004012,120]
[404160968,1769887846097,-446.78,0.0004022,120]
[404160971,1769887846122,-562.32,0.00040273,38]
[404160973,1769887846147,-446.78,0.0004032,120]
[404160976,1769887846172,-353.509,0.00040381,57]
[404160977,1769887846198,-446.78,0.0004042,120]
[404160980,1769887846224,-446.78,0.0004052,120]
[404160981,1769887846249,-446.78,0.0004062,120]
[404160982,1769887846276,-238.11817,0.000407,120]
[404160983,1769887846303,-446.78,0.0004072,120]
[404160984,1769887846327,-446.78,0.0004082,120]
[404160985,1769887846356,-446.78,0.0004092,120]
[404160986,1769887846382,-544.7,0.00040993,120]
[404160987,1769887846408,-446.78,0.0004102,120]
[404160988,1769887846432,-562.32,0.00041095,39]
[404160989,1769887846458,-948.28,0.00041096,120]
[404160990,1769887846485,-402.48,0.00041096,120]
[404160991,1769887846510,-367.20317245,0.00041096,31]
[404160992,1769887846535,-730.05,0.000411,30]
[404160993,1769887846562,-161.75457638,0.000411,120]
[404160994,1769887846587,-161.75457638,0.000411,120]
[404160995,1769887846613,-161.75457638,0.000411,120]
[404160996,1769887846640,-161.75457638,0.000411,120]
[404160997,1769887846667,-161.75457638,0.000411,120]
[404160998,1769887846695,-161.75457638,0.000411,120]
[404160999,1769887846719,-161.75457638,0.000411,120]
[404161000,1769887846744,-161.75457638,0.000411,120]
[404161001,1769887846771,-161.75,0.000411,120]
[404161002,1769887846795,-234.43920214,0.000411,120]
[404161003,1769887846825,-234.43920214,0.000411,120]
[404161004,1769887846850,-234.43920214,0.000411,120]
[404161005,1769887846877,-234.43920214,0.000411,120]
[404161006,1769887846907,-234.43920214,0.000411,120]
[404161007,1769887846934,-234.43920214,0.000411,120]
[404161008,1769887846958,-234.43920214,0.000411,120]
[404161009,1769887846984,-234.43920214,0.000411,120]
[404161010,1769887847009,-234.43920214,0.000411,120]
[404161011,1769887847037,-234.43920214,0.000411,120]
[404161012,1769887847067,-234.43920214,0.000411,120]
[404161013,1769887847091,-234.43920214,0.000411,120]
[404161014,1769887847116,-234.43920214,0.000411,120]
[404161015,1769887847143,-234.43920214,0.000411,120]
[404161016,1769887847169,-234.43920214,0.000411,120]
[404161017,1769887847194,-234.43920214,0.000411,120]
[404161018,1769887847220,-234.43920214,0.000411,120]
[404161019,1769887847246,-234.43920214,0.000411,120]
[404161020,1769887847272,-234.43920214,0.000411,120]
[404161021,1769887847302,-234.43,0.000411,120]
[404161022,1769887847331,-246.48334857,0.000411,120]
[404161023,1769887847361,-246.48334857,0.000411,120]
[404161024,1769887847387,-246.48334857,0.000411,120]
[404161025,1769887847414,-246.48334857,0.000411,120]
[404161026,1769887847440,-246.48334857,0.000411,120]
[404161027,1769887847465,-246.48334857,0.000411,120]
[404161028,1769887847492,-246.48334857,0.000411,120]
[404161029,1769887847517,-246.48334857,0.000411,120]
[404161030,1769887847543,-246.48334857,0.000411,120]
[404161031,1769887847571,-246.48334857,0.000411,120]
[404161032,1769887847597,-246.48334857,0.000411,120]
[404161033,1769887847623,-246.48334857,0.000411,120]
[404161034,1769887847651,-246.48334857,0.000411,120]
[404161035,1769887847676,-246.48334857,0.000411,120]
[404161036,1769887847700,-246.48334857,0.000411,120]
[404161037,1769887847727,-246.48334857,0.000411,120]
[404161038,1769887847751,-246.48334857,0.000411,120]
[404161039,1769887847777,-246.48334857,0.000411,120]
[404161040,1769887847802,-246.48334857,0.000411,120]
[404161041,1769887847827,-246.48,0.000411,120]
[404161042,1769887847936,-446.78,0.0004112,120]
[404161043,1769887847964,-339.0,0.00041161,120]
[404161044,1769887847990,-188.0,0.00041161,120]
[404161045,1769887848016,-446.78,0.0004122,120]
[404161046,1769887848042,-162.0,0.00041255,120]
[404161047,1769887848071,-446.78,0.0004132,120]
[404161048,1769887848097,-446.78,0.0004142,120]
[404161049,1769887848124,-446.78,0.0004152,120]
[404161050,1769887848152,-5436.2,0.000416,14]
[404161051,1769887848182,-446.78,0.0004162,120]
[404161052,1769887848209,-446.78,0.0004172,120]
[404161053,1769887848235,-446.78,0.0004182,120]
[404161054,1769887848261,-562.32,0.00041917,40]
[404161055,1769887848286,-446.78,0.0004192,120]
[404161056,1769887848311,-841.81537788,0.00041973,120]
[404161057,1769887848335,-617.93043829,0.00042,120]
[404161058,1769887848365,-446.78,0.0004202,120]
[404161059,1769887848392,-166.79,0.000421,2]
[404161060,1769887848419,-446.78,0.0004212,120]
[404161061,1769887848447,-446.78,0.0004222,120]
[404161062,1769887848474,-446.78,0.0004232,120]
[404161063,1769887848502,-238.11817,0.000424,120]
[404161064,1769887848528,-446.78,0.0004242,120]
[404161065,1769887848555,-5138.62147304,0.000425,120]
[404161066,1769887848582,-446.78,0.0004252,120]
[404161067,1769887848610,-446.78,0.0004262,120]
[404161068,1769887848635,-2755.93166753,0.000427,120]
[404161069,1769887848660,-446.78,0.0004272,120]
[404161070,1769887848686,-562.32,0.00042739,41]
[404161071,1769887848713,-446.78,0.0004282,120]
[404161072,1769887848740,-446.78,0.0004292,120]
[404161073,1769887848764,-506.78,0.00043,120]
[404161074,1769887848791,-446.78,0.0004302,120]
[404161075,1769887848818,-150.0,0.00043059,30]
[404161076,1769887848849,-446.78,0.0004312,120]
[404161077,1769887848874,-378.942317,0.00043153,30]
[404161078,1769887848898,-378.942317,0.00043153,30]
[404161079,1769887848923,-378.942317,0.00043153,30]
[404161080,1769887848948,-378.942317,0.00043153,30]
[404161081,1769887848974,-378.942317,0.00043153,30]
[404161082,1769887848998,-339.0,0.00043219,120]
[404161083,1769887849023,-188.0,0.00043219,120]
[404161084,1769887849051,-446.78,0.0004322,120]
[404161085,1769887849074,-343.1686076,0.0004329,30]
[404161086,1769887849099,-194.7961003,0.0004329,30]
[404161087,1769887849128,-189.9503656,0.0004329,30]
[404161088,1769887849153,-194.7961003,0.0004329,30]
[404161089,1769887849181,-194.7961003,0.0004329,30]
[404161090,1769887849205,-155.88,0.000433,14]
[404161091,1769887849229,-232.71,0.000433,120]
[404161092,1769887849253,-162.0,0.00043318,120]
[404161093,1769887849281,-446.78,0.0004332,120]
[404161094,1769887849308,-544.7,0.00043386,120]
[404161095,1769887849334,-446.78,0.0004342,120]
[404161096,1769887849360,-200.0,0.00043499,30]
[404161097,1769887849385,-23375.27127857,0.000435,120]
[404161098,1769887849411,-446.78,0.0004352,120]
[404161099,1769887849436,-562.32,0.00043561,42]
[404161100,1769887849460,-155.3532582,0.00043564,30]
[404161101,1769887849484,-730.05,0.000436,30]
[404161102,1769887849509,-446.78,0.0004362,120]
[404161103,1769887849535,-446.78,0.0004372,120]
[404161104,1769887849562,-257.3950646,0.00043757,30]
[404161105,1769887849599,-194.5782368,0.00043757,30]
[404161106,1769887849629,-446.78,0.0004382,120]
[404161107,1769887849656,-447.71489276,0.0004392,120]
[404161108,1769887849685,-884.86275516,0.00043973,120]
[404161109,1769887849713,-238.11817,0.000441,120]
[404161110,1769887849741,-378.942317,0.00044112,30]
[404161111,1769887849770,-378.942317,0.00044112,30]
[404161112,1769887849796,-378.942317,0.00044112,30]
[404161113,1769887849824,-378.942317,0.00044112,30]
[404161114,1769887849852,-378.942317,0.00044112,30]
[404161115,1769887849881,-378.942317,0.00044112,30]
[404161116,1769887849910,-378.942317,0.00044112,30]
[404161117,1769887849936,-378.942317,0.00044112,30]
[404161118,1769887849961,-378.942317,0.00044112,30]
[404161119,1769887849987,-378.942317,0.00044112,30]
[404161120,1769887850012,-378.942317,0.00044112,30]
[404161121,1769887850153,-378.942317,0.00044112,30]
[404161122,1769887850179,-194.7961003,0.00044112,30]
[404161123,1769887850204,-562.32,0.00044383,43]
[404161124,1769887850232,-5436.2,0.000447,14]
[404161125,1769887850257,-157.34,0.000447,14]
[404161126,1769887850283,-346.02642722,0.000449,120]
[404161127,1769887850309,-9518.78,0.00044905,13]
[404161128,1769887850334,-470.10511823,0.00045,120]
[404161129,1769887850362,-882.68024102,0.00045,20]
[404161130,1769887850387,-5499.999998,0.00045,30]
[404161131,1769887850411,-506.22578161,0.00045,120]
[404161132,1769887850437,-297.51817477,0.00045,120]
[404161133,1769887850466,-921.45810344,0.00045,120]
[404161134,1769887850493,-10699.999999,0.00045,120]
[404161135,1769887850523,-562.32,0.00045205,44]
[404161136,1769887850550,-339.0,0.0004538,120]
[404161137,1769887850575,-434.31743547,0.000454,120]
[404161138,1769887850600,-148735.1026,0.0004544,30]
[404161139,1769887850626,-162.0,0.00045484,120]
[404161140,1769887850651,-574.43,0.00045552,13]
[404161141,1769887850677,-544.7,0.00045779,120]
[404161142,1769887850703,-927.91013243,0.00045973,120]
[404161143,1769887850728,-271.74125511,0.00046,30]
[404161144,1769887850754,-452.14930889,0.00046,120]
[404161145,1769887850782,-562.32,0.00046027,45]
[404161146,1769887850808,-525.7,0.00046275,13]
[404161147,1769887850832,-500.0,0.00046575,120]
[404161148,1769887850857,-251.93958832,0.00046575,120]
[404161149,1769887850882,-562.32,0.00046849,46]
[404161150,1769887850907,-2137.43,0.00046972,13]
[404161151,1769887850935,-210.94746584,0.00047,120]
[404161152,1769887850962,-339.0,0.00047649,120]
[404161153,1769887850989,-562.32,0.00047671,47]
[404161154,1769887851015,-162.0,0.00047758,120]
[404161155,1769887851042,-970.95750971,0.00047973,120]
[404161156,1769887851068,-352.55471768,0.00048,120]
[404161157,1769887851093,-544.7,0.00048172,120]
[404161158,1769887851118,-224.92,0.00048193,13]
[404161159,1769887851143,-562.32,0.00048493,48]
[404161160,1769887851169,-4759.4837998,0.000489,120]
[404161161,1769887851194,-316.89428754,0.00049,15]
[404161162,1769887851219,-7994.35,0.00049015,13]
[404161163,1769887851244,-1397.0,0.00049315,120]
[404161164,1769887851269,-262.79336981,0.00049315,120]
[404161165,1769887851294,-562.32,0.00049315,49]
[404161166,1769887851321,-707.0,0.00049315,120]
[404161167,1769887851349,-707.0,0.00049315,120]
[404161168,1769887851375,-707.0,0.00049315,120]
[404161169,1769887851403,-707.0,0.00049315,120]
[404161170,1769887851429,-707.0,0.00049315,120]
[404161171,1769887851456,-707.0,0.00049315,120]
[404161172,1769887851482,-300.0,0.00049315,120]
[404161173,1769887851507,-300.0,0.00049315,120]
[404161174,1769887851532,-300.0,0.00049315,120]
[404161175,1769887851558,-300.0,0.00049315,120]
[404161176,1769887851584,-300.0,0.00049315,120]
[404161177,1769887851610,-299.0,0.00049315,120]
[404161178,1769887851635,-299.0,0.00049315,120]
[404161179,1769887851660,-299.0,0.00049315,120]
[404161180,1769887851686,-299.0,0.00049315,120]
[404161181,1769887851712,-299.0,0.00049315,120]
[404161182,1769887851736,-299.0,0.00049315,120]
[404161183,1769887851763,-299.0,0.00049315,120]
[404161184,1769887851789,-299.0,0.00049315,120]
[404161185,1769887851817,-299.0,0.00049315,120]
[404161186,1769887851843,-299.0,0.00049315,120]
[404161187,1769887851870,-299.0,0.00049315,120]
[404161188,1769887851896,-299.0,0.00049315,120]
[404161189,1769887851923,-299.0,0.00049315,120]
[404161190,1769887851954,-299.0,0.00049315,120]
[404161191,1769887851981,-299.0,0.00049315,120]
[404161192,1769887852006,-299.0,0.00049315,120]
[404161193,1769887852033,-299.0,0.00049315,120]
[404161194,1769887852060,-299.0,0.00049315,120]
[404161195,1769887852086,-299.0,0.00049315,120]
[404161196,1769887852112,-299.0,0.00049315,120]
[404161197,1769887852138,-299.0,0.00049315,120]
[404161198,1769887852249,-299.0,0.00049315,120]
[404161199,1769887852276,-299.0,0.00049315,120]
[404161200,1769887852304,-299.0,0.00049315,120]
[404161201,1769887852330,-299.0,0.00049315,120]
[404161202,1769887852360,-299.0,0.00049315,120]
[404161203,1769887852387,-299.0,0.00049315,120]
[404161204,1769887852414,-299.0,0.00049315,120]
[404161205,1769887852441,-299.0,0.00049315,120]
[404161206,1769887852467,-299.0,0.00049315,120]
[404161207,1769887852494,-299.0,0.00049315,120]
[404161208,1769887852522,-299.0,0.00049315,120]
[404161209,1769887852549,-299.0,0.00049315,120]
[404161210,1769887852577,-299.0,0.00049315,120]
[404161211,1769887852603,-299.0,0.00049315,120]
[404161212,1769887852628,-299.0,0.00049315,120]
[404161213,1769887852654,-299.0,0.00049315,120]
[404161214,1769887852680,-777.5687938,0.000496,120]
[404161215,1769887852704,-922.04,0.000497,13]
[404161216,1769887852732,-150.0,0.00049842,30]
[404161217,1769887852758,-1014.00488699,0.00049973,120]
[404161218,1769887852785,-206.0,0.0005,120]
[404161219,1769887852811,-166.79,0.0005,2]
[404161220,1769887852836,-208.71993713,0.0005,120]
[404161221,1769887852862,-4068.87358106,0.0005,90]
[404161222,1769887852887,-1506.82246691,0.0005,120]
[404161223,1769887852913,-225.07739433,0.0005,20]
[404161224,1769887852938,-9280.61456323,0.0005,120]
[404161225,1769887852963,-251.4838565,0.0005,120]
[404161226,1769887852990,-539.17140554,0.0005,10]
[404161227,1769887853017,-4621.42877297,0.0005,120]
[404161228,1769887853044,-329.08114919,0.0005,120]
[404161229,1769887853072,-441.16088777,0.0005,120]
[404161230,1769887853100,-556.12242355,0.0005,120]
[404161231,1769887853127,-199.0,0.0005,7]
[404161232,1769887853151,-40440.25170778,0.0005,120]
[404161233,1769887853177,-486.10360746,0.0005,120]
[404161234,1769887853203,-244.73131377,0.0005,120]
[404161235,1769887853229,-495.03681171,0.0005,30]
[404161236,1769887853254,-164.0,0.0005,120]
[404161237,1769887853280,-339.0,0.00050031,120]
[404161238,1769887853307,-562.32,0.00050136,50]
[404161239,1769887853335,-162.0,0.00050146,120]
[404161240,1769887853365,-1000.0,0.000503,60]
[404161241,1769887853390,-151.015349,0.000503,2]
[404161242,1769887853420,-151.0,0.000503,120]
[404161243,1769887853446,-151.0,0.000503,120]
[404161244,1769887853473,-151.0,0.000503,120]
[404161245,1769887853499,-151.0,0.000503,120]
[404161246,1769887853527,-1674.52,0.000503,13]
[404161247,1769887853554,-206.0,0.000504,120]
[404161248,1769887853583,-72443.09382589,0.000505,60]
[404161249,1769887853611,-544.7,0.00050566,120]
[404161250,1769887853638,-1000.0,0.000506,60]
[404161251,1769887853666,-206.0,0.000508,120]
[404161252,1769887853692,-1000.0,0.000509,60]
[404161253,1769887853717,-562.32,0.00050958,51]
[404161254,1769887853744,-346.83602419,0.0005099,90]
[404161255,1769887853770,-212.0,0.0005119,30]
[404161256,1769887853797,-1000.0,0.000512,60]
[404161257,1769887853827,-206.0,0.000512,120]
[404161258,1769887853853,-1590.24,0.000512,13]
[404161259,1769887853879,-1000.0,0.000515,60]
[404161260,1769887853906,-206.0,0.000516,120]
[404161261,1769887853932,-562.32,0.0005178,52]
[404161262,1769887853958,-1000.0,0.000518,60]
[404161263,1769887853983,-3144.22,0.000518,13]
[404161264,1769887854015,-206.0,0.00052,120]
[404161265,1769887854043,-1000.0,0.000521,60]
[404161266,1769887854069,-1000.0,0.000524,60]
[404161267,1769887854096,-206.0,0.000524,120]
[404161268,1769887854127,-212.0,0.0005249,30]
[404161269,1769887854154,-1045.12,0.000525,13]
[404161270,1769887854182,-4999.999999,0.000525,120]
[404161271,1769887854208,-339.0,0.00052533,120]
[404161272,1769887854235,-562.50679901,0.00052602,53]
[404161273,1769887854347,-1000.0,0.000527,60]
[404161274,1769887854374,-730.05,0.000527,30]
[404161275,1769887854401,-206.0,0.000528,120]
[404161276,1769887854429,-544.7,0.00052959,120]
[404161277,1769887854453,-1000.0,0.00053,60]
[404161278,1769887854478,-638.04120988,0.00053,120]
[404161279,1769887854501,-826.19388258,0.00053,31]
[404161280,1769887854526,-206.0,0.000532,120]
[404161281,1769887854553,-1000.0,0.000533,60]
[404161282,1769887854582,-3224.08,0.000533,13]
[404161283,1769887854611,-242.8396667,0.000535,120]
[404161284,1769887854637,-1000.0,0.000536,60]
[404161285,1769887854664,-206.0,0.000536,120]
[404161286,1769887854689,-212.0,0.0005379,30]
[404161287,1769887854715,-1000.0,0.000539,60]
[404161288,1769887854740,-206.0,0.00054,120]
[404161289,1769887854767,-5436.2,0.00054,14]
[404161290,1769887854795,-559.10364073,0.00054,120]
[404161291,1769887854826,-688.77489613,0.00054,120]
[404161292,1769887854854,-1000.0,0.000542,60]
[404161293,1769887854880,-166.79,0.000543,2]
[404161294,1769887854906,-206.0,0.000544,120]
[404161295,1769887854932,-1000.0,0.000545,60]
[404161296,1769887854957,-200.0,0.00054794,120]
[404161297,1769887854982,-200.0,0.00054794,120]
[404161298,1769887855008,-200.0,0.00054794,120]
[404161299,1769887855033,-200.0,0.00054794,120]
[404161300,1769887855060,-297.74307288,0.00054794,120]
[404161301,1769887855085,-1000.0,0.000548,60]
[404161302,1769887855111,-206.0,0.000548,120]
[404161303,1769887855135,-159.67628168,0.000549,120]
[404161304,1769887855160,-54575.60645614,0.000549,120]
[404161305,1769887855185,-212.0,0.0005509,120]
[404161306,1769887855210,-1000.0,0.000551,60]
[404161307,1769887855236,-339.0,0.00055159,120]
[404161308,1769887855263,-206.0,0.000552,120]
[404161309,1769887855289,-1469.95825973,0.00055351,30]
[404161310,1769887855314,-1000.0,0.000554,60]
[404161311,1769887855343,-206.0,0.000556,120]
[404161312,1769887855370,-206.0,0.00056,120]
[404161313,1769887855396,-212.0,0.000564,120]
[404161314,1769887855422,-206.0,0.000564,120]
[404161315,1769887855447,-150.0,0.00056625,30]
[404161316,1769887855472,-206.0,0.000569,120]
[404161317,1769887855497,-206.0,0.000573,120]
[404161318,1769887855523,-212.0,0.000577,120]
[404161319,1769887855549,-206.0,0.000577,120]
[404161320,1769887855577,-339.0,0.00057917,120]
[404161321,1769887855605,-169.8657665,0.00058,60]
[404161322,1769887855632,-206.0,0.000581,120]
[404161323,1769887855657,-206.0,0.000585,120]
[404161324,1769887855683,-206.0,0.000589,120]
[404161325,1769887855712,-5661.68643561,0.000589,120]
[404161326,1769887855737,-212.0,0.00059,120]
[404161327,1769887855763,-730.05,0.00059,30]
[404161328,1769887855788,-206.0,0.000593,120]
[404161329,1769887855813,-423.84,0.00059588,30]
[404161330,1769887855840,-206.0,0.000597,120]
[404161331,1769887855870,-2238.28347665,0.000599,120]
[404161332,1769887855898,-206.0,0.000601,120]
[404161333,1769887855926,-206.0,0.000605,120]
[404161334,1769887855952,-206.0,0.000609,120]
[404161335,1769887855976,-206.0,0.000613,120]
[404161336,1769887856001,-233.06255167,0.00061431,2]
[404161337,1769887856026,-206.0,0.000617,120]
[404161338,1769887856051,-206.0,0.000621,120]
[404161339,1769887856076,-206.0,0.000625,120]
[404161340,1769887856100,-166.79,0.000625,2]
[404161341,1769887856126,-206.0,0.000629,120]
[404161342,1769887856151,-206.0,0.000633,120]
[404161343,1769887856176,-150.0,0.00063409,30]
[404161344,1769887856201,-353.509,0.00063587,120]
[404161345,1769887856306,-206.0,0.000637,120]
[404161346,1769887856332,-206.0,0.000641,120]
[404161347,1769887856359,-206.0,0.000645,120]
[404161348,1769887856385,-206.0,0.000649,120]
[404161349,1769887856412,-206.0,0.000653,120]
[404161350,1769887856438,-206.0,0.000657,120]
[404161351,1769887856466,-206.0,0.000661,120]
[404161352,1769887856498,-206.0,0.000665,120]
[404161353,1769887856527,-206.0,0.000669,120]
[404161354,1769887856559,-206.0,0.000673,120]
[404161355,1769887856591,-206.0,0.000677,120]
[404161356,1769887856617,-206.0,0.000681,120]
[404161357,1769887856644,-206.0,0.000685,120]
[404161358,1769887856670,-206.0,0.000689,120]
[404161359,1769887856696,-206.0,0.000693,120]
[404161360,1769887856723,-206.0,0.000697,120]
[404161361,1769887856749,-30082.10333675,0.0007,120]
[404161362,1769887856774,-3645.13012788,0.0007,120]
[404161363,1769887856800,-206.0,0.000701,120]
[404161364,1769887856829,-150.0,0.00070192,30]
[404161365,1769887856855,-206.0,0.000706,120]
[404161366,1769887856879,-206.0,0.00071,120]
[404161367,1769887856906,-206.0,0.000714,120]
[404161368,1769887856935,-206.0,0.000718,120]
[404161369,1769887856963,-206.0,0.000722,120]
[404161370,1769887856990,-206.0,0.000726,120]
[404161371,1769887857015,-206.0,0.00073,120]
[404161372,1769887857041,-206.0,0.000734,120]
[404161373,1769887857067,-206.0,0.000738,120]
[404161374,1769887857092,-206.0,0.000742,120]
[404161375,1769887857118,-206.0,0.000746,120]
[404161376,1769887857146,-206.0,0.00075,120]
[404161377,1769887857173,-100000.0,0.00075,120]
[404161378,1769887857199,-206.0,0.000754,120]
[404161379,1769887857224,-11887.37257059,0.00075444,120]
[404161380,1769887857248,-206.0,0.000758,120]
[404161381,1769887857273,-206.0,0.000762,120]
[404161382,1769887857298,-206.0,0.000766,120]
[404161383,1769887857323,-162.8,0.00076975,30]
[404161384,1769887857351,-214.0,0.00077,120]
[404161385,1769887857378,-5436.2,0.00077,14]
[404161386,1769887857404,-164.0,0.00077,120]
[404161387,1769887857432,-200.0,0.0008,120]
[404161388,1769887857458,-681.58396702,0.0008,50]
[404161389,1769887857482,-1753.44384961,0.0008188,120]
[404161390,1769887857507,-51757.0381935,0.000835,120]
[404161391,1769887857534,-186.06,0.00083758,30]
[404161392,1769887857565,-12520.0,0.00084,120]
[404161393,1769887857592,-353.509,0.00086794,120]
[404161394,1769887857618,-209.32,0.00090542,30]
[404161395,1769887857645,-6151.48618555,0.0009488,60]
[404161396,1769887857672,-232.58,0.00097325,30]
[404161397,1769887857698,-6068.37460767,0.000975,30]
[404161398,1769887857723,-423.82,0.00099195,120]
[404161399,1769887857749,-741.52070148,0.001,120]
[404161400,1769887857775,-543.25804306,0.001,120]
[404161401,1769887857859,300.0,0.00013537,2]
[404161402,1769887857894,2541.5114,0.00042192,30]
[404161403,1769887857934,600.0,0.00013537,2]
[404161404,1769887857970,720.0,0.00014891,2]
[404161405,1769887858007,864.0,0.0001638,2]
[404161406,1769887858044,1000.0,0.00018018,2]
[404161407,1769887858084,1000.0,0.0001982,2]
[404161408,1769887858208,244.0,0.0001982,2]
[404161409,1769887858242,1000.0,0.00021802,10]
[404161410,1769887858259,-4050.67,0.00036697,3]
[404161411,1769887858269,-1424.03,0.00036697,3]
[404161412,1769887858284,-1746.3298998,0.00036697,3]
[404161413,1769887858316,492.0,0.00021802,10]
[404161414,1769887858350,1000.0,0.00023982,10]
[404161415,1769887858387,791.0,0.00023982,10]
[404161416,1769887858427,1000.0,0.0002638,30]
[404161417,1769887858469,1000.0,0.0002638,30]
[404161418,1769887858506,1000.0,0.00029018,30]
[404161419,1769887858544,2542.02,0.00032877,10]
[404161420,1769887858580,1000.0,0.00029018,30]
[404161421,1769887858616,579.0,0.00029018,30]
[404161422,1769887858650,321.94,0.0004,30]
[404161423,1769887858686,1000.0,0.0003192,30]
[404161424,1769887858718,321.94,0.00042,30]
[404161425,1769887858753,1000.0,0.0003192,30]
[404161426,1769887858789,5000.0,0.00013402,2]
[404161427,1769887858823,2978.31,0.00017921,2]
[404161428,1769887858855,321.94,0.000441,30]
[404161429,1769887858887,1000.0,0.0003192,30]
[404161430,1769887858920,321.94,0.00046305,30]
[404161431,1769887858957,1000.0,0.00035112,30]
[404161432,1769887858972,-880.3101002,0.00036697,3]
[404161433,1769887858988,-4050.67,0.00036697,3]
[404161434,1769887858998,-4050.67,0.00036697,3]
[404161435,1769887859007,-4050.67,0.00036697,3]
[404161436,1769887859018,-4050.67,0.00036697,3]
[404161437,1769887859027,-4050.67,0.00036697,3]
[404161438,1769887859036,-4050.67,0.00036697,3]
[404161439,1769887859046,-4050.67,0.00036697,3]
[404161440,1769887859055,-4050.67,0.00036697,3]
[404161441,1769887859065,-4050.67,0.00036697,3]
[404161442,1769887859074,-4050.67,0.00036697,3]
[404161443,1769887859083,-4050.67,0.00036697,3]
[404161444,1769887859093,-4050.67,0.00036697,3]
[404161445,1769887859102,-4050.67,0.00036697,3]
[404161446,1769887859112,-4050.67,0.00036697,3]
[404161447,1769887859122,-4050.67,0.00036697,3]
[404161448,1769887859131,-4050.67,0.00036697,3]
[404161449,1769887859140,-4050.67,0.00036697,3]
[404161450,1769887859150,-4050.67,0.00036697,3]
[404161451,1769887859159,-4050.67,0.00036697,3]
[404161452,1769887859168,-4050.67,0.00036697,3]
[404161453,1769887859177,-4050.67,0.00036697,3]
[404161454,1769887859187,-4050.79873294,0.00036697,3]
[404161455,1769887859196,-500.0,0.00036697,2]
[404161456,1769887859205,-500.0,0.00036697,2]
[404161457,1769887859216,-500.0,0.00036697,2]
[404161458,1769887859225,-500.0,0.00036697,2]
[404161459,1769887859234,-500.0,0.00036697,2]
[404161460,1769887859243,-587.27716317,0.00036697,2]
[404161461,1769887859253,-92189.90327472,0.00036697,2]
[404161462,1769887859263,-300.0,0.00036697,2]
[404161463,1769887859273,-22888.83161499,0.00036697,2]
[404161464,1769887859283,-3922.4883003,0.00036697,2]
[404161465,1769887859292,-817.90078901,0.00036697,2]
[404161466,1769887859302,-260.78712638,0.00036697,2]
[404161467,1769887859314,-330.23197963,0.00036697,2]
[404161468,1769887859323,-605.5062385,0.00036697,2]